bitfinex/quotes_ETHUSD_20251224
["timestamp","ask_amount","ask_price","bid_price","bid_amount"]
[1766604748630,0.002,2943.6,2943.0,1.3025]
[1766604749230,0.002,2943.6,2943.0,4.70039211]
[1766604750337,0.002,2943.6,2943.0,1.3025]
[1766604751237,0.06794055,2943.5,2943.0,1.3025]
[1766604751732,1.32634055,2943.5,2943.0,1.3025]
[1766604751903,1.32634055,2943.5,2942.3,6.0864]
[1766604751904,1.2584,2943.0,2942.3,6.0864]
[1766604752107,1.2584,2943.0,2942.4,4.70392937]
[1766604753222,0.11041277,2943.1,2942.4,4.70392937]
[1766604753223,1.3008751,2942.9,2942.4,4.703971]
[1766604759247,1.3008751,2942.9,2942.4,1.3054]
[1766604759418,1.79033805,2942.9,2942.2,3.39873478]
[1766604759628,0.06794055,2942.8,2942.4,0.001]
[1766604763057,1.2712,2942.9,2942.4,1.291]
[1766604763846,1.2712,2942.9,2942.5,3.39847068]
[1766604765951,1.33914055,2943.1,2942.5,3.39847068]
[1766604767550,0.06794055,2942.9,2942.5,3.39847068]
[1766604770022,0.06794055,2942.9,2942.4,0.001]
[1766604770222,0.06794055,2942.9,2942.5,1.29]
[1766604773448,1.33914055,2942.9,2942.4,0.001]
[1766604774563,1.33914055,2942.9,2942.5,0.001]
[1766604774733,1.34114055,2942.9,2942.5,0.001]
[1766604780362,1.2732,2942.9,2942.5,0.001]
[1766604780583,0.002,2942.9,2942.5,1.291]
[1766604782871,0.002,2942.9,2942.5,4.68935811]
[1766604790169,0.002,2942.9,2942.6,1.2254]
[1766604792578,0.06994055,2942.9,2942.6,4.62371051]
[1766604792761,0.002,2942.9,2942.6,4.62371051]
[1766604794144,0.002,2942.9,2942.6,4.62374231]
[1766604794348,0.06994055,2942.9,2942.6,4.62374231]
[1766604811107,0.002,2942.9,2942.6,4.62374231]
[1766604812406,0.06794055,2943.3,2942.7,1.2089]
[1766604813498,0.06794055,2943.3,2942.7,4.60706438]
[1766604814398,0.002,2942.9,2942.7,4.60706438]
[1766604814801,0.002,2942.9,2942.8,1.2089]
[1766604819806,0.002,2942.9,2942.8,4.60702423]
[1766604819994,0.002,2942.9,2942.8,1.2089]
[1766604822407,0.002,2942.9,2942.8,1.2099]
[1766604825416,0.002,2942.9,2942.8,1.207502]
[1766604832787,0.002,2942.9,2942.8,0.001]
[1766604833517,0.06994055,2943.1,2942.8,0.001]
[1766604840323,0.06994055,2943.1,2942.9,1.02000397]
[1766604842910,0.002,2943.1,2942.9,1.02000397]
[1766604847943,0.06994055,2943.1,2942.9,1.02000397]
[1766604848650,0.002,2943.1,2942.9,1.02000397]
[1766604850250,4.29025713,2943.6,2943.0,1.1757]
[1766604850251,0.002,2943.6,2943.0,1.1757]
[1766604850442,0.06794055,2943.5,2943.0,1.1757]
[1766604850833,0.06794055,2943.5,2943.1,0.13598619]
[1766604851849,0.044465,2943.6,2943.1,0.13598619]
[1766604852173,0.06794055,2943.5,2943.1,0.13598619]
[1766604852859,0.06794055,2943.3,2943.1,0.13598619]
[1766604858764,0.06794055,2943.3,2942.8,4.57478597]
[1766604858960,0.06794055,2943.3,2942.9,0.4574786]
[1766604859164,0.06794055,2943.3,2942.9,1.47737508]
[1766604860683,0.06794055,2943.3,2942.9,1.47837508]
[1766604860866,0.06994055,2943.3,2942.9,1.47837508]
[1766604861171,0.06994055,2943.3,2942.9,4.87637277]
[1766604863473,0.06994055,2943.3,2942.9,6.05207277]
[1766604864668,0.06994055,2943.3,2942.9,2.65407508]
[1766604864873,0.06994055,2943.3,2942.9,2.19659648]
[1766604865273,0.002,2943.3,2942.9,2.19659648]
[1766604865572,0.06994055,2943.3,2942.9,2.19659648]
[1766604867176,0.06994055,2943.3,2942.9,0.001]
[1766604867177,1.22094055,2943.1,2942.9,0.001]
[1766604868475,1.19547366,2943.0,2942.5,0.001]
[1766604868775,1.22094055,2942.9,2942.5,0.001]
[1766604878681,1.22094055,2942.9,2941.9,1.1385]
[1766604878682,1.24204055,2942.6,2941.9,1.1385]
[1766604878855,0.06794055,2942.3,2941.9,1.1385]
[1766604879785,0.06794055,2942.3,2941.9,4.53766305]
[1766604883065,1.1741,2942.4,2941.9,1.1385]
[1766604883393,0.06794055,2942.3,2941.9,4.53763843]
[1766604883762,0.06794055,2942.3,2941.9,1.1385]
[1766604895111,0.06794055,2942.3,2941.9,4.53765136]
[1766604896104,0.06794055,2942.3,2941.9,1.1385]
[1766604901627,1.1741,2942.4,2941.9,4.53764085]
[1766604902208,0.06794055,2942.3,2941.9,4.53764085]
[1766604902514,1.1741,2942.4,2941.9,4.53764085]
[1766604902934,1.1741,2942.4,2941.9,1.1385]
[1766604903140,0.06794055,2942.6,2942.1,1.2006]
[1766604903339,0.11041854,2942.7,2942.2,1.2006]
[1766604908303,0.11241854,2942.7,2942.2,1.2006]
[1766604912340,0.06794055,2942.5,2942.2,1.2006]
[1766604916645,0.06994055,2942.5,2942.2,1.2006]
[1766604919351,0.06994055,2942.5,2942.3,1.2006]
[1766604919352,4.055e-05,2942.5,2942.3,1.2006]
[1766604921463,4.055e-05,2942.5,2942.3,4.59926103]
[1766604921620,4.055e-05,2942.5,2942.3,1.2006]
[1766604925169,4.055e-05,2942.5,2942.3,1.2016]
[1766604930069,4.055e-05,2942.5,2942.3,0.001]
[1766604930944,0.06794055,2942.4,2942.3,0.001]
[1766604933232,4.055e-05,2942.5,2942.3,0.001]
[1766604938062,1.07254055,2942.5,2942.3,0.001]
[1766604948949,1.07254055,2942.5,2942.0,0.892]
[1766604949562,1.07254055,2942.5,2942.0,4.29103172]
[1766604950268,1.07254055,2942.5,2942.3,0.001]
[1766604952548,1.0725,2942.4,2942.3,0.001]
[1766604957658,1.0725,2942.4,2941.9,0.001]
[1766604957860,1.0725,2942.2,2941.9,0.001]
[1766604963090,0.06794055,2942.3,2941.9,0.001]
[1766604963299,0.04252143,2942.5,2941.9,1.1236]
[1766604963300,4.055e-05,2942.5,2941.9,1.1236]
[1766604964496,4.055e-05,2942.5,2942.1,1.1226]
[1766604967572,4.055e-05,2942.5,2942.1,4.52151909]
[1766604978113,4.055e-05,2942.5,2942.1,4.46818909]
[1766604987020,4.055e-05,2942.5,2942.1,6.79785182]
[1766604987219,4.055e-05,2942.5,2942.2,1.1226]
[1766604988298,4.055e-05,2942.5,2942.3,1.1226]
[1766604989499,4.055e-05,2942.5,2942.1,3.39887185]
[1766604989693,4.055e-05,2942.5,2942.1,4.52147185]
[1766604995437,4.055e-05,2942.5,2942.1,1.1226]
[1766604995605,4.055e-05,2942.5,2942.1,4.52150009]
[1766605005542,4.055e-05,2942.5,2942.1,5.32736392]
[1766605007141,4.055e-05,2942.5,2942.1,4.52150009]
[1766605008342,4.055e-05,2942.5,2942.2,1.1494]
[1766605011220,4.055e-05,2942.5,2942.2,4.54819534]
[1766605013145,4.055e-05,2942.5,2942.2,1.1494]
[1766605019162,4.055e-05,2942.5,2942.2,4.54820269]
[1766605026072,0.04247655,2942.8,2942.3,1.0816]
[1766605026245,0.002,2942.9,2942.3,1.0816]
[1766605026246,0.002,2942.9,2942.5,1.0816]
[1766605026429,0.002,2942.9,2942.6,0.03398355]
[1766605026970,0.002,2942.9,2942.6,1.11558355]
[1766605027264,0.002,2942.9,2942.6,4.51387138]
[1766605027834,0.002,2943.1,2942.7,1.0816]
[1766605028164,0.002,2943.1,2942.8,1.11558124]
[1766605028939,0.002,2943.1,2942.8,4.51370239]
[1766605029663,0.002,2943.1,2942.9,0.03398008]
[1766605029873,0.002,2943.1,2942.9,1.11558008]
[1766605031080,0.002,2943.1,2942.9,5.78682921]
[1766605032072,0.002,2943.3,2942.9,5.78682921]
[1766605033141,0.002,2943.3,2942.9,2.38889525]
[1766605033463,0.002,2943.3,2942.9,1.11558008]
[1766605033892,0.002,2943.3,2942.9,0.03398008]
[1766605034194,1.1338,2943.3,2942.9,0.03398008]
[1766605034358,1.1338,2943.3,2942.9,3.43198484]
[1766605036582,1.1338,2943.3,2942.9,0.03398008]
[1766605036783,1.1338,2943.3,2942.8,0.03398124]
[1766605037301,1.1338,2943.3,2942.8,3.43210142]
[1766605040602,1.1338,2943.3,2942.8,4.43974216]
[1766605046513,1.1338,2943.3,2942.8,5.52134216]
[1766605048419,1.1338,2943.3,2942.8,4.51370142]
[1766605057416,1.1338,2943.3,2942.8,4.51470142]
[1766605061203,1.1338,2943.3,2942.8,1.11658124]
[1766605063437,1.17625938,2943.3,2942.8,1.11658124]
[1766605064122,1.17625938,2943.3,2942.8,0.03498124]
[1766605064522,1.1338,2943.3,2942.8,0.03498124]
[1766605065899,1.20174055,2943.3,2942.8,0.03498124]
[1766605066724,1.16095938,2943.2,2942.4,3.39849794]
[1766605066918,1.16095938,2943.2,2942.6,3.3983285]
[1766605067291,1.16095938,2943.2,2942.5,4.51377068]
[1766605068927,1.16095938,2943.2,2942.6,0.03398355]
[1766605070951,1.16095938,2943.2,2942.6,3.43233077]
[1766605078748,1.16095938,2943.2,2942.6,4.54763077]
[1766605078953,1.16095938,2943.2,2942.6,3.43233077]
[1766605079118,1.16095938,2943.2,2942.6,4.54763077]
[1766605081122,1.75999501,2943.2,2942.6,1.14928355]
[1766605081319,1.1185,2943.1,2942.6,1.14928355]
[1766605081533,1.1185,2943.1,2942.7,1.01996929]
[1766605082854,1.1185,2943.1,2942.6,1.01996929]
[1766605083151,1.1185,2943.1,2942.6,1.05395284]
[1766605083357,1.1185,2943.1,2942.6,2.18225284]
[1766605084844,1.1185,2943.1,2942.7,3.39823971]
[1766605085047,1.1185,2943.1,2942.8,0.03398124]
[1766605086434,1.1185,2943.1,2942.7,0.03398239]
[1766605088253,1.1185,2943.1,2942.7,3.43219436]
[1766605088492,0.002,2943.7,2942.9,1.1283]
[1766605088628,0.002,2943.7,2943.1,1.1283]
[1766605088937,0.002,2943.7,2942.8,1.78888178]
[1766605088938,1.1183,2943.6,2943.2,0.03397662]
[1766605089127,1.1183,2943.6,2943.0,0.03397893]
[1766605089332,1.1183,2943.6,2942.7,6.79645168]
[1766605089333,1.1163,2943.4,2943.2,6.33e-06]
[1766605089528,1.1163,2943.2,2942.6,3.89]
[1766605089724,1.22669993,2943.1,2942.6,3.89]
[1766605089954,1.1163,2943.0,2942.6,3.89]
[1766605090170,1.22669993,2942.9,2942.5,0.001]
[1766605090329,1.1163,2942.8,2942.5,0.001]
[1766605090657,0.04245938,2942.7,2942.5,0.001]
[1766605091627,1.15875938,2942.8,2942.5,0.001]
[1766605091829,1.7232303,2942.8,2942.5,0.001]
[1766605092564,5.12135669,2942.8,2942.5,0.001]
[1766605092940,1.18424055,2942.7,2942.1,0.001]
[1766605093126,1.1163,2942.5,2942.1,0.001]
[1766605093971,1.15875938,2942.5,2942.1,0.001]
[1766605095462,1.72328039,2942.5,2942.1,0.001]
[1766605096358,1.1163,2942.4,2942.1,0.001]
[1766605097066,0.60698039,2942.5,2942.1,0.001]
[1766605097067,0.04245938,2942.5,2942.1,0.001]
[1766605097866,1.02017393,2942.6,2942.1,0.001]
[1766605099077,1.02017393,2942.6,2942.1,1.16328932]
[1766605100035,0.04245938,2942.5,2942.1,0.03498932]
[1766605100363,0.04245938,2942.5,2942.1,0.001]
[1766605100667,0.04245938,2942.5,2941.9,0.001]
[1766605100668,1.1163,2942.3,2941.9,0.001]
[1766605100871,0.04248521,2942.2,2941.9,0.001]
[1766605101770,1.1163,2942.1,2941.8,0.00952432]
[1766605103154,1.1163,2942.1,2941.8,0.001]
[1766605103672,1.1163,2942.1,2941.9,0.001]
[1766605105487,0.04248521,2942.2,2941.9,0.001]
[1766605105641,2.1366266,2942.3,2941.9,0.00952532]
[1766605106057,1.1163,2943.0,2942.3,1.1283]
[1766605106258,0.06794055,2942.9,2942.4,1.13680829]
[1766605106700,1.15877366,2943.0,2942.4,1.13680829]
[1766605106870,1.15877366,2943.0,2942.5,1.02010109]
[1766605111192,0.06794055,2942.9,2942.5,1.02010109]
[1766605111365,1.17297655,2942.8,2942.5,1.02010109]
[1766605111694,1.11954055,2942.7,2942.0,1.02017047]
[1766605111988,1.11954055,2942.5,2941.9,4.55155041]
[1766605112193,0.04248232,2942.4,2941.9,4.55155041]
[1766605112493,1.11954055,2942.5,2942.0,1.1429]
[1766605112494,0.06794055,2942.5,2942.0,1.1429]
[1766605112902,0.06794055,2942.5,2942.1,3.39893273]
[1766605113486,1.02027108,2942.4,2942.1,3.39893273]
[1766605113691,1.16602143,2942.5,2942.0,1.15141984]
[1766605113987,2.18629251,2942.5,2942.0,1.15141984]
[1766605114455,1.16602143,2942.5,2942.0,4.5504551]
[1766605114657,1.12354055,2942.5,2942.0,4.5504551]
[1766605119079,1.12554055,2942.5,2942.0,4.5504551]
[1766605119893,0.002,2943.1,2942.1,1.1556]
[1766605120094,0.06794055,2942.6,2942.2,0.00851016]
[1766605120278,0.06794055,2942.6,2942.2,1.02867369]
[1766605120688,0.06794055,2942.6,2942.2,0.00851016]
[1766605120871,0.06794055,2942.6,2942.3,1.02016353]
[1766605121092,1.20717799,2942.7,2942.3,1.02016353]
[1766605125308,1.20717799,2942.7,2942.3,4.41886037]
[1766605125613,1.20717799,2942.7,2942.3,1.02016353]
[1766605126509,1.20917799,2942.7,2942.3,4.41885852]
[1766605129912,1.20917799,2942.7,2942.3,1.02016353]
[1766605131340,1.20917799,2942.7,2942.3,4.41886157]
[1766605134036,0.04447799,2942.7,2942.3,5.57446157]
[1766605134347,0.002,2942.7,2942.3,6.47263977]
[1766605134520,0.002,2942.7,2942.3,6.48115224]
[1766605134707,0.002,2942.7,2942.3,6.48215224]
[1766605135014,0.002,2942.7,2942.3,5.32655224]
[1766605135215,0.002,2942.7,2942.4,1.1556]
[1766605136617,0.002,2942.7,2942.4,4.55417331]
[1766605137644,0.002,2942.7,2942.4,1.1556]
[1766605138747,0.002,2942.7,2942.4,4.55413309]
[1766605139542,0.002,2942.7,2942.4,1.1556]
[1766605139840,0.002,2942.7,2942.4,4.55418573]
[1766605140421,0.002,2943.1,2942.5,1.1641106]
[1766605140641,0.06794055,2943.0,2942.5,1.1641106]
[1766605140846,0.002,2943.1,2942.5,1.1641106]
[1766605141152,0.002,2943.1,2942.7,1.1556]
[1766605141647,0.04447222,2943.1,2942.7,1.1556]
[1766605141849,0.002,2943.1,2942.7,1.1556]
[1766605144552,0.002,2943.1,2942.7,1.16410093]
[1766605146630,0.002,2943.1,2942.7,4.5622959]
[1766605148256,0.002,2943.1,2942.7,1.16410093]
[1766605149523,0.002,2943.1,2942.7,4.56231982]
[1766605150752,0.002,2943.1,2942.7,1.16410093]
[1766605150955,0.002,2943.1,2942.7,4.5623321]
[1766605152231,0.002,2943.1,2942.7,4.20290014]
[1766605152461,0.002,2943.1,2942.8,1.1856]
[1766605153259,0.002,2943.1,2942.9,0.00849904]
[1766605153961,0.04447078,2943.2,2943.0,1.1856]
[1766605154161,0.002,2943.2,2943.0,1.1856]
[1766605156161,0.002,2943.2,2943.0,4.58348132]
[1766605156465,0.06794055,2943.4,2943.0,5.38250264]
[1766605156633,0.06794055,2943.4,2943.0,4.58348132]
[1766605157863,0.002,2943.1,2943.0,4.58348132]
[1766605159441,0.96094055,2943.6,2943.1,1.1856]
[1766605159640,0.04246645,2943.5,2943.2,1.1856]
[1766605165475,0.04446645,2943.5,2943.2,1.1856]
[1766605172106,0.04446645,2943.5,2943.0,4.58621755]
[1766605185031,0.002,2943.5,2943.1,1.1733]
[1766605185236,0.002,2943.5,2943.1,1.63136176]
[1766605185735,0.002,2943.5,2943.2,1.1733]
[1766605186092,0.002,2943.5,2943.2,1.18178779]
[1766605187727,0.002,2943.5,2943.2,1.1733]
[1766605194831,0.002,2943.5,2943.1,0.00848808]
[1766605196035,0.03598197,2943.5,2943.0,1.18278938]
[1766605196835,0.06794055,2943.4,2943.0,1.18278938]
[1766605198236,1.26798197,2943.5,2943.0,4.58067929]
[1766605200142,1.26798197,2943.5,2943.0,1.18278938]
[1766605201542,1.28264055,2943.2,2942.7,4.41804011]
[1766605201717,0.04247222,2943.1,2942.6,4.65709272]
[1766605201919,1.32511277,2943.1,2942.6,0.001]
[1766605202129,1.28264055,2942.9,2942.4,3.89]
[1766605202332,1.2147,2942.7,2942.4,3.89]
[1766605203444,1.2147,2942.7,2942.4,7.28857988]
[1766605204313,1.2147,2943.0,2942.5,0.0085106]
[1766605204541,0.0424751,2942.9,2942.5,0.0085106]
[1766605204938,0.11041565,2942.9,2942.5,0.0085106]
[1766605206855,0.11041565,2942.9,2942.5,3.40696195]
[1766605207352,0.11041565,2942.9,2942.5,0.0085106]
[1766605209656,0.11041565,2942.9,2942.5,3.40695919]
[1766605210048,1.32511565,2942.9,2942.5,3.40695919]
[1766605210253,1.32511565,2942.9,2942.5,0.0085106]
[1766605211439,1.32511565,2942.9,2942.4,3.39956688]
[1766605212060,1.32511565,2942.9,2942.4,0.001]
[1766605212252,1.28264055,2942.7,2942.4,0.001]
[1766605212445,0.04247943,2942.6,2942.4,0.001]
[1766605212760,1.25717943,2942.6,2942.4,0.001]
[1766605213067,1.25717943,2942.6,2942.3,0.001]
[1766605213068,1.28264055,2942.5,2942.0,3.40751576]
[1766605213236,0.04248232,2942.4,2942.0,3.40751576]
[1766605214162,1.25718232,2942.4,2942.0,0.00851334]
[1766605214370,1.2147,2942.2,2941.9,0.001]
[1766605222072,1.2147,2942.2,2941.9,0.00952532]
[1766605222688,0.11042143,2942.5,2941.9,0.00952532]
[1766605222993,0.04248232,2942.4,2941.9,0.00952532]
[1766605227591,0.04248232,2942.4,2942.0,3.39904826]
[1766605227792,0.04248232,2942.4,2942.1,0.00852085]
[1766605227963,0.95894055,2942.7,2942.1,1.29178932]
[1766605228158,0.95894055,2942.7,2942.2,1.2578]
[1766605228492,0.03396754,2942.6,2942.3,0.03398701]
[1766605231585,0.03396754,2942.6,2942.2,1.2578]
[1766605231897,0.03396754,2942.6,2942.2,1.29178817]
[1766605233000,0.03396754,2942.6,2942.2,4.69060333]
[1766605237308,0.03596754,2942.6,2942.2,4.69060333]
[1766605237770,0.03596754,2942.6,2942.2,3.43280333]
[1766605238101,1.21106754,2942.6,2942.2,3.43280333]
[1766605242409,0.03596754,2942.6,2942.2,4.64270333]
[1766605243797,0.03596754,2942.6,2942.2,1.24388817]
[1766605244597,0.03596754,2942.6,2942.1,3.39889041]
[1766605244598,1.24304055,2942.5,2942.0,3.39901234]
[1766605244907,0.03396754,2942.4,2942.0,3.39901234]
[1766605245783,0.03396754,2942.4,2942.1,3.39893033]
[1766605245998,1.27700809,2942.4,2941.9,4.61002761]
[1766605246308,1.24304055,2942.4,2941.9,4.64403442]
[1766605246510,1.1751,2942.4,2942.0,3.39904826]
[1766605247009,1.1751,2942.4,2941.9,3.40014103]
[1766605247196,0.03396754,2942.3,2941.9,0.001]
[1766605247390,0.06794055,2942.3,2941.9,0.001]
[1766605247593,0.10190809,2942.3,2942.0,1.2099]
[1766605247813,0.06794055,2942.3,2942.0,1.2099]
[1766605251108,0.03396754,2942.2,2942.0,1.2099]
[1766605251503,0.06794055,2942.5,2942.0,4.60894641]
[1766605252930,0.06794055,2942.5,2942.0,1.2099]
[1766605253813,0.06794055,2942.5,2942.0,1.2109]
[1766605255938,0.06794055,2942.5,2942.0,4.60994666]
[1766605257221,0.06794055,2942.3,2942.0,4.60994666]
[1766605257630,0.06794055,2942.3,2942.0,1.2109]
[1766605257801,0.06794055,2942.3,2942.0,4.60994421]
[1766605264844,0.06794055,2942.5,2942.0,4.60994421]
[1766605265212,0.06794055,2942.3,2942.0,4.60994421]
[1766605268139,0.06794055,2942.1,2941.9,0.03499163]
[1766605268339,1.27333218,2942.0,2941.8,0.001]
[1766605268559,0.10193218,2942.0,2941.8,0.001]
[1766605279629,1.27333218,2942.0,2941.8,0.001]
[1766605281589,0.10193218,2942.0,2941.8,0.001]
[1766605285491,0.03399163,2942.0,2941.8,0.001]
[1766605285787,0.96094055,2942.3,2941.8,1.2752]
[1766605285788,0.10193218,2942.1,2941.8,1.2752]
[1766605285952,0.03399163,2942.0,2941.8,1.2752]
[1766605286763,0.03599163,2942.0,2941.8,1.2752]
[1766605292187,0.893,2942.3,2941.8,1.2752]
[1766605292482,0.06994055,2942.3,2941.9,1.1794]
[1766605295576,0.002,2942.3,2941.9,4.57855663]
[1766605295884,0.24541224,2942.8,2942.1,1.1794]
[1766605296080,0.06794055,2942.8,2942.1,1.1794]
[1766605296255,0.06794055,2942.6,2942.1,1.1794]
[1766605297457,0.06794055,2942.8,2942.2,1.2198]
[1766605297658,0.06794055,2942.6,2942.2,1.2198]
[1766605298355,1.31624055,2942.8,2942.2,1.2198]
[1766605298570,0.06794055,2942.6,2942.2,1.2198]
[1766605302394,0.06994055,2942.6,2942.2,1.2198]
[1766605312206,0.002,2942.6,2942.2,4.61861264]
[1766605312407,0.891,2942.8,2942.3,1.2198]
[1766605312621,0.891,2942.8,2942.3,1.25378701]
[1766605314304,0.891,2942.8,2942.3,4.65247547]
[1766605314611,0.06994055,2942.9,2942.4,1.2198]
[1766605315908,1.2483,2943.1,2942.6,6.04215255]
[1766605316208,0.002,2943.2,2942.7,0.60761373]
[1766605316411,0.06994055,2943.2,2942.7,0.60761373]
[1766605316618,0.06994055,2943.2,2942.7,4.0058281]
[1766605317187,0.06994055,2943.2,2942.7,5.2256281]
[1766605318720,0.002,2942.9,2942.7,5.2256281]
[1766605321130,0.002,2942.9,2942.7,1.82741373]
[1766605321826,0.002,2942.9,2942.7,5.22563459]
[1766605322649,0.002,2942.9,2942.8,0.52596181]
[1766605322809,0.06994055,2943.2,2942.8,0.52596181]
[1766605323011,0.06994055,2943.2,2942.7,5.25961698]
[1766605323529,1.27814055,2943.2,2942.7,5.25961698]
[1766605326330,0.002,2943.2,2942.7,4.03981698]
[1766605326543,0.002,2943.2,2942.8,1.3037]
[1766605327039,1.2082,2943.4,2942.9,1.33768008]
[1766605327343,0.06994055,2943.5,2943.0,1.3037]
[1766605327935,0.06994055,2943.5,2943.0,4.70154489]
[1766605329359,0.06994055,2943.5,2943.0,6.79573819]
[1766605329641,0.002,2943.5,2943.1,1.33767777]
[1766605330038,0.002,2943.5,2943.1,4.73539581]
[1766605330208,0.002,2943.5,2943.1,5.64633736]
[1766605331022,0.002,2943.5,2943.2,1.3037]
[1766605336863,0.002,2943.6,2943.3,1.33767546]
[1766605339360,0.002,2943.6,2943.3,4.7351814]
[1766605340461,0.06994055,2943.7,2943.4,1.3037]
[1766605341969,0.002,2943.6,2943.4,1.3037]
[1766605348482,0.002,2943.6,2943.2,0.03397662]
[1766605348646,0.002,2943.6,2943.2,1.33767662]
[1766605351378,1.36604055,2943.5,2942.9,0.9761748]
[1766605351580,1.36604055,2943.5,2942.9,0.891]
[1766605351771,1.36604055,2943.5,2942.9,1.91092075]
[1766605352086,1.36604055,2943.5,2942.9,3.20602075]
[1766605352477,1.36604055,2943.5,2943.0,0.03397893]
[1766605355688,1.36604055,2943.5,2943.0,1.32907893]
[1766605358696,1.36604055,2943.5,2943.0,1.33007893]
[1766605359401,1.36604055,2943.5,2943.0,1.2961]
[1766605361975,0.002,2943.6,2943.1,0.03397777]
[1766605365403,1.3217,2943.6,2943.1,0.03397777]
[1766605367289,0.002,2943.8,2943.1,0.57478848]
[1766605367491,1.38764055,2943.7,2943.0,0.001]
[1766605367705,1.3197,2943.4,2943.1,4.849e-05]
[1766605367896,2.2107,2943.7,2943.1,1.2067]
[1766605368204,1.60891055,2943.6,2943.1,1.2067]
[1766605368401,1.60891055,2943.6,2943.0,3.43287143]
[1766605371802,1.38764055,2943.4,2943.0,0.001]
[1766605372006,1.3197,2943.2,2942.8,0.001]
[1766605372308,0.06794055,2943.3,2942.2,7.28873389]
[1766605372309,1.38764055,2943.1,2942.4,1.2067]
[1766605372475,1.38764055,2943.1,2942.4,5.62528665]
[1766605372677,0.06794055,2942.9,2942.4,4.60522719]
[1766605373589,1.3197,2943.0,2942.4,4.60522719]
[1766605374304,0.06794055,2943.2,2942.5,1.2406847]
[1766605374682,1.38764055,2943.2,2942.5,1.2406847]
[1766605375383,1.38764055,2943.2,2942.8,0.001]
[1766605375683,1.64957312,2943.1,2942.8,0.001]
[1766605377294,1.02009068,2943.3,2942.8,1.2077]
[1766605377606,1.38764055,2943.5,2942.8,1.2077]
[1766605377607,1.38764055,2943.5,2942.9,1.24068008]
[1766605377805,2.40766186,2943.5,2942.9,1.24068008]
[1766605378002,1.3197,2943.4,2942.9,1.24068008]
[1766605378412,0.06794055,2943.3,2942.9,1.24068008]
[1766605380812,1.3197,2943.4,2942.9,1.24068008]
[1766605381316,1.56066619,2943.4,2942.9,1.24068008]
[1766605382113,0.06794055,2943.3,2942.9,1.24068008]
[1766605386817,0.06794055,2943.3,2942.9,0.03398008]
[1766605387005,0.06794055,2943.3,2942.8,0.001]
[1766605387206,1.35254055,2943.3,2942.8,0.001]
[1766605387512,1.35254055,2942.9,2942.0,1.02102131]
[1766605387691,1.31858239,2942.8,2942.2,4.61811721]
[1766605387886,1.31858239,2942.8,2942.3,0.03398701]
[1766605388689,1.31858239,2942.8,2942.3,3.43262023]
[1766605389227,1.31858239,2942.8,2942.3,4.65192023]
[1766605389386,1.31858239,2942.8,2942.3,5.45709397]
[1766605389736,1.2846,2943.3,2942.4,1.2193]
[1766605389917,1.2866,2943.6,2942.9,1.2193]
[1766605390247,1.2866,2943.6,2943.0,0.03397893]
[1766605390391,1.2866,2943.6,2943.0,1.25327893]
[1766605390710,1.2866,2943.6,2943.0,4.65116831]
[1766605391103,1.2866,2943.6,2943.0,1.25327893]
[1766605391104,0.002,2943.3,2943.0,1.25327893]
[1766605394521,0.002,2943.3,2943.0,4.6511578]
[1766605395329,0.002,2943.3,2943.0,1.25327893]
[1766605395533,0.002,2943.3,2943.1,0.46512265]
[1766605396051,0.002,2943.3,2943.1,1.68442265]
[1766605399933,1.2866,2943.6,2943.2,0.03397662]
[1766605400135,0.002,2943.6,2943.2,1.25327662]
[1766605402125,0.002,2943.6,2943.2,0.03397662]
[1766605402326,1.2866,2943.6,2943.2,0.03397662]
[1766605402548,1.2866,2943.6,2943.1,0.03397777]
[1766605402754,1.2866,2943.6,2943.0,0.03397893]
[1766605403940,1.2866,2943.6,2942.8,6.79624846]
[1766605404147,1.2866,2943.6,2942.9,0.89065485]
[1766605404342,1.2866,2943.6,2942.8,3.39812423]
[1766605404343,1.2846,2943.5,2942.8,3.39812423]
[1766605407362,1.2846,2943.5,2942.8,3.39912423]
[1766605409563,1.2846,2943.5,2942.9,0.03398008]
[1766605410252,1.2846,2943.5,2942.9,1.25328008]
[1766605411551,1.2846,2943.5,2942.9,4.65117467]
[1766605415367,1.2846,2943.5,2942.9,4.65217467]
[1766605424074,1.2866,2943.5,2942.9,4.65217467]
[1766605431607,1.2866,2943.5,2942.9,4.69317467]
[1766605434007,0.002,2943.5,2943.1,1.2603]
[1766605434207,0.002,2943.5,2943.1,1.29427777]
[1766605434807,0.002,2943.6,2943.1,0.03397777]
[1766605435006,0.002,2943.6,2943.2,1.2603]
[1766605435203,0.002,2943.8,2943.4,6.07930473]
[1766605435407,0.002,2944.1,2943.7,9.47639003]
[1766605435608,0.002,2944.1,2943.7,6.07930473]
[1766605435808,0.002,2944.1,2943.7,1.29427085]
[1766605440888,0.002,2944.1,2943.8,1.2603]
[1766605441089,0.002,2944.3,2944.0,1.2603]
[1766605441488,0.002,2944.3,2943.8,4.65246436]
[1766605441698,0.002,2944.3,2943.9,0.03396854]
[1766605442419,1.2945,2944.3,2943.9,0.03396854]
[1766605451519,1.2945,2944.3,2943.5,6.79463224]
[1766605451690,1.2925,2944.1,2943.6,0.74059603]
[1766605452492,0.03396854,2944.0,2943.5,4.61891612]
[1766605452812,1.2925,2944.1,2943.6,1.2216]
[1766605453718,1.2925,2944.1,2943.6,4.61880046]
[1766605454290,1.2925,2944.1,2943.6,4.6187828]
[1766605454614,1.2925,2944.1,2943.6,1.2216]
[1766605455203,1.32646854,2944.0,2943.5,3.4312391]
[1766605456493,0.002,2944.3,2943.6,1.2216]
[1766605456712,0.002,2944.3,2943.7,1.25557085]
[1766605456911,1.2945,2944.3,2943.7,1.25557085]
[1766605458631,0.002,2944.3,2943.8,1.2216]
[1766605458832,0.002,2944.3,2943.9,1.25556854]
[1766605459621,0.002,2944.3,2943.9,2.14963562]
[1766605461243,0.002,2944.3,2943.9,5.546489]
[1766605462912,0.002,2944.3,2943.9,2.14963562]
[1766605464908,0.002,2944.3,2943.9,5.54648945]
[1766605467024,0.002,2944.5,2944.0,1.2216]
[1766605467217,0.002,2944.5,2944.1,1.25556623]
[1766605468436,0.002,2944.3,2944.1,1.25556623]
[1766605469311,0.002,2944.7,2944.2,1.2216]